bitfinex-derivatives/quotes_ETHF0:USTF0_20241105
["timestamp","ask_amount","ask_price","bid_price","bid_amount"]
[1730835859858,0.40867,2446.8,2446.7,1.31629]
[1730835862355,0.40869,2446.7,2446.6,0.8517]
[1730835862563,1.88063361,2446.7,2446.6,0.443]
[1730835862749,1.88063361,2446.7,2446.6,0.8517]
[1730835863154,42.27194361,2446.9,2446.6,0.443]
[1730835863355,0.40868,2446.8,2446.7,0.40868]
[1730835865653,0.40869,2446.7,2446.6,0.8517]
[1730835865854,1.88063361,2446.7,2446.6,0.8517]
[1730835871369,1.47194361,2446.7,2446.6,0.8517]
[1730835872565,1.88063361,2446.7,2446.6,0.8517]
[1730835874368,1.47194361,2446.7,2446.6,0.8517]
[1730835874566,0.40868,2446.8,2446.6,0.443]
[1730835874866,0.40868,2446.8,2446.7,0.40869]
[1730835875063,0.40868,2446.8,2446.7,0.83849]
[1730835875760,1.88061361,2446.9,2446.8,0.40867]
[1730835875955,41.265,2447.0,2446.8,0.40867]
[1730835876156,3.2078,2447.1,2446.7,5.54684361]
[1730835876364,3.2078,2447.1,2447.0,0.40864]
[1730835876561,0.04505,2447.5,2447.0,4.3598]
[1730835876758,0.04505,2447.5,2447.1,2.36234361]
[1730835876759,41.2536,2447.5,2447.1,2.36234361]
[1730835876955,41.2536,2447.5,2447.4,0.40857]
[1730835877156,0.40857,2447.4,2447.3,0.40858]
[1730835877366,0.40859,2447.3,2447.1,0.8904]
[1730835877670,0.40859,2447.3,2447.1,1.29901]
[1730835878164,0.40859,2447.3,2447.2,0.4086]
[1730835878864,1.88052361,2447.4,2447.2,0.4086]
[1730835879566,0.40859,2447.3,2447.1,1.29901]
[1730835879951,40.84505,2447.5,2447.1,0.8904]
[1730835880159,0.40862,2447.1,2447.0,3.2078]
[1730835880670,0.40864,2447.0,2446.9,1.152]
[1730835885469,0.40864,2447.0,2446.9,1.56065]
[1730835885669,0.40864,2447.0,2446.9,1.152]
[1730835887464,0.40864,2447.0,2446.9,1.56065]
[1730835888474,0.40864,2447.0,2446.9,1.152]
[1730835889378,1.88058361,2447.0,2446.9,1.152]
[1730835890969,0.40867,2446.8,2446.7,1.32399]
[1730835891675,0.84527,2446.8,2446.7,1.32399]
[1730835892980,2.31721361,2446.8,2446.7,0.9153]
[1730835894384,2.31721361,2446.8,2446.7,1.32399]
[1730835897578,2.31721361,2446.8,2446.7,2.39448803]
[1730835897885,0.4492,2447.0,2446.9,0.40865]
[1730835897886,0.40865,2447.0,2446.9,0.40865]
[1730835898182,3.61643,2447.1,2447.0,0.40864]
[1730835898383,3.61643,2447.1,2446.9,1.07086764]
[1730835898580,3.61643,2447.1,2446.9,1.50466764]
[1730835898780,3.61643,2447.1,2447.0,0.83994]
[1730835898981,3.61643,2447.1,2447.0,0.4313]
[1730835899784,0.40863,2447.1,2447.0,0.4313]
[1730835899983,1.88057361,2447.1,2447.0,0.4313]
[1730835900184,1.47194361,2447.1,2446.8,1.47952764]
[1730835900486,1.47194361,2447.1,2446.8,1.91082764]
[1730835900487,0.40865,2446.9,2446.8,1.91082764]
[1730835901680,0.40865,2446.9,2446.8,1.07086764]
[1730835901992,0.40867,2446.8,2446.7,1.07086764]
[1730835902192,0.40869,2446.7,2446.6,1.07086764]
[1730835903894,0.40871,2446.6,2446.5,1.07086764]
[1730835905189,1.88065361,2446.6,2446.5,1.07086764]
[1730835905397,0.40872,2446.5,2446.4,1.52596764]
[1730835905599,0.40872,2446.5,2446.4,3.08550942]
[1730835905795,0.40872,2446.5,2446.4,3.62038883]
[1730835905989,0.40872,2446.5,2446.4,2.63056827]
[1730835906188,0.40872,2446.5,2446.4,1.07102649]
[1730835906394,0.40874,2446.4,2446.3,1.07102649]
[1730835906590,2.78718361,2446.4,2446.3,1.07102649]
[1730835906788,1.02173,2446.8,2446.3,2.63036291]
[1730835906789,3.2078,2446.8,2446.3,2.63036291]
[1730835906989,0.475,2447.1,2447.0,0.40864]
[1730835907197,0.04505,2447.5,2447.4,0.40857]
[1730835907387,0.04505,2447.5,2447.4,1.88051361]
[1730835907793,0.04505,2447.5,2447.4,5.96611361]
[1730835907996,2.35540361,2448.1,2447.4,12.37419806]
[1730835908297,42.27194361,2448.1,2447.8,0.4085]
[1730835908502,3.2078,2448.2,2447.7,2.21924465]
[1730835908803,3.2078,2448.2,2447.9,0.40849]
[1730835909002,44.0078,2448.2,2447.9,0.40849]
[1730835909397,44.0078,2448.2,2447.8,1.54444465]
[1730835909398,3.2078,2448.2,2447.8,1.54444465]
[1730835909697,3.2078,2448.2,2448.0,0.40847]
[1730835910602,3.2078,2448.2,2448.1,0.4353]
[1730835910995,3.2078,2448.2,2447.8,1.54444465]
[1730835911196,3.2078,2448.2,2448.1,0.40845]
[1730835911390,41.20839,2448.5,2447.9,7.7279]
[1730835911391,40.8,2448.5,2447.9,7.7279]
[1730835911708,40.8,2448.5,2447.9,3.6431]
[1730835911901,0.40845,2448.2,2447.9,3.6431]
[1730835912097,40.8,2448.5,2447.9,3.6431]
[1730835912098,0.40846,2448.1,2447.9,3.6431]
[1730835912704,0.40845,2448.2,2447.9,3.6431]
[1730835912898,44.0078,2448.5,2447.9,3.6431]
[1730835913205,0.40847,2448.0,2447.9,3.6431]
[1730835913801,0.4755,2448.4,2447.9,3.6431]
[1730835913802,0.40847,2448.1,2447.9,4.05159]
[1730835914005,0.40847,2448.0,2447.9,3.6431]
[1730835915600,0.40847,2448.0,2447.9,3.2078]
[1730835918408,3.2078,2448.2,2447.6,3.6582]
[1730835918608,0.40852,2447.7,2447.6,4.8072]
[1730835922208,0.40852,2447.7,2447.6,1.5994]
[1730835925515,0.40852,2447.7,2447.6,1.149]
[1730835926907,0.40855,2447.5,2447.4,0.4566]
[1730835927109,0.40857,2447.4,2447.3,4.3538]
[1730835927619,0.40857,2447.4,2447.3,4.76239]
[1730835928318,0.40857,2447.4,2447.3,4.3538]
[1730835929516,0.40857,2447.4,2447.3,1.146]
[1730835929914,0.40859,2447.3,2447.2,2.071]
[1730835932213,0.40859,2447.3,2447.1,0.87931]
[1730835932214,3.6604,2447.6,2447.1,1.6167]
[1730835932418,0.4086,2447.2,2447.1,1.6167]
[1730835932811,0.40862,2447.1,2447.0,0.4436]
[1730835933013,0.40867,2446.8,2446.7,0.5568]
[1730835933316,0.40872,2446.5,2446.4,1.5896]
[1730835934012,0.40872,2446.5,2446.4,0.4436]
[1730835935220,0.4399,2446.8,2446.4,0.4436]
[1730835935526,0.40872,2446.5,2446.4,0.4436]
[1730835936323,0.40874,2446.4,2446.3,0.4618]
[1730835936623,3.6477,2446.8,2446.2,4.76256]
[1730835936624,0.40876,2446.3,2446.2,3.2078]
[1730835936825,3.6477,2446.8,2446.2,3.2078]
[1730835937020,0.40876,2446.3,2446.2,3.2078]
[1730835938220,0.4548,2446.5,2446.1,0.4672]
[1730835938221,0.40877,2446.2,2446.1,0.4672]
[1730835938420,0.40879,2446.1,2446.0,0.4732]
[1730835939127,0.40882,2445.9,2445.8,0.456]
[1730835941024,0.40886,2445.7,2445.6,0.4658]
[1730835941218,41.2438,2446.1,2445.5,4.8194]
[1730835941422,0.40887,2445.6,2445.5,4.8194]
[1730835942025,0.40887,2445.6,2445.5,0.4646]
[1730835948133,3.2078,2445.9,2445.6,0.40887]
[1730835948332,3.61664,2445.9,2445.7,0.40885]
[1730835948521,0.40884,2445.8,2445.7,0.40885]
[1730835948719,4.0888,2445.8,2445.5,0.87348]
[1730835948923,0.40887,2445.7,2445.5,0.87348]
[1730835950620,3.2078,2445.9,2445.5,0.87348]
[1730835950823,0.40887,2445.6,2445.5,0.87348]
[1730835951023,3.2078,2445.9,2445.5,0.87348]
[1730835951224,0.40886,2445.7,2445.5,0.87348]
[1730835951937,0.40885,2445.8,2445.6,0.40887]
[1730835952428,0.40886,2445.7,2445.6,0.40887]
[1730835954630,0.40885,2445.8,2445.7,0.40885]
[1730835954831,0.40885,2445.8,2445.7,0.88075]
[1730835957434,0.40885,2445.8,2445.7,0.4719]
[1730835958532,0.40885,2445.8,2445.7,0.88076]
[1730835960235,0.40885,2445.8,2445.7,0.4719]
[1730835960437,0.40885,2445.8,2445.7,0.88076]
[1730835961735,44.4516,2446.1,2445.7,0.4719]
[1730835961936,0.40883,2445.9,2445.8,0.40884]
[1730835962135,0.40884,2445.8,2445.7,0.88074]
[1730835962335,44.4516,2446.1,2445.7,0.4719]
[1730835962544,0.40882,2446.0,2445.9,0.40882]
[1730835962743,44.86039,2446.1,2446.0,0.40881]
[1730835962944,44.86039,2446.1,2445.8,0.4359]
[1730835962945,44.4516,2446.1,2445.8,0.4359]
[1730835963140,44.4516,2446.1,2445.9,0.40882]
[1730835963446,44.4516,2446.1,2445.8,0.4359]
[1730835963745,44.4516,2446.1,2446.0,0.40881]
[1730835964239,48.5396,2446.1,2446.0,0.40881]
[1730835964749,41.2438,2446.1,2446.0,0.40881]
[1730835964945,41.2438,2446.1,2445.8,0.4359]
[1730835964946,0.40881,2446.0,2445.8,0.84473]
[1730835965245,44.4516,2446.1,2445.5,4.9114]
[1730835965443,0.4459,2445.9,2445.8,0.40884]
[1730835965744,44.4516,2446.1,2446.0,0.40881]
[1730835967546,44.86039,2446.1,2445.9,0.40881]
[1730835968436,41.65259,2446.1,2445.9,0.40881]
[1730835968837,41.65259,2446.1,2446.0,0.40881]
[1730835969039,44.86039,2446.1,2446.0,0.40881]
[1730835970647,44.4516,2446.1,2446.0,0.40881]
[1730835971449,44.86039,2446.1,2446.0,0.40881]
[1730835971650,44.4516,2446.1,2446.0,0.40881]
[1730835971845,3.18698814,2446.3,2446.0,0.40881]
[1730835972045,4.06244,2446.4,2446.3,0.40876]
[1730835972455,44.86244,2446.4,2446.3,0.40876]
[1730835972761,0.40876,2446.3,2446.2,0.40876]
[1730835974954,0.40881,2446.1,2446.0,0.4088]
[1730835977357,0.40881,2446.1,2446.0,1.47904465]
[1730835977746,0.40881,2446.1,2446.0,1.07024465]
[1730835977747,4.49681,2446.1,2446.0,1.07024465]
[1730835977953,7.2958,2446.1,2445.8,1.07024465]
[1730835978156,0.40882,2445.9,2445.8,1.47907465]
[1730835978350,0.40882,2445.9,2445.8,3.56007354]
[1730835978557,41.20882,2445.9,2445.8,3.56007354]
[1730835978751,41.20882,2445.9,2445.8,3.02462048]
[1730835978949,41.20882,2445.9,2445.8,1.47874392]
[1730835979151,41.20882,2445.9,2445.8,3.02470512]
[1730835979353,41.20882,2445.9,2445.8,3.56015818]
[1730835979952,41.20882,2445.9,2445.8,2.61635633]
[1730835979953,45.29762,2445.9,2445.8,2.61635633]
[1730835980159,45.29762,2445.9,2445.8,1.07039513]
[1730835982256,0.40884,2445.8,2445.7,1.07039513]
[1730835982656,0.40886,2445.7,2445.6,1.07039513]
[1730835983460,41.20886,2445.7,2445.6,1.07039513]
[1730835983763,41.20886,2445.7,2445.6,1.95719256]
[1730835983952,41.20886,2445.7,2445.6,3.56255954]
[1730835984257,41.20886,2445.7,2445.6,1.95719256]
[1730835984463,41.20886,2445.7,2445.6,1.07160703]
[1730835984663,41.20886,2445.7,2445.6,2.62014623]
[1730835984863,41.20886,2445.7,2445.6,1.07160703]
[1730835985371,41.20886,2445.7,2445.6,1.48047703]
[1730835985658,40.8,2445.7,2445.6,3.02905008]
[1730835985863,0.40884,2445.8,2445.7,0.40886]
[1730835986061,0.40884,2445.8,2445.7,1.48059553]
[1730835986266,41.20884,2445.8,2445.7,1.48059553]
[1730835986560,41.20884,2445.8,2445.7,0.40886]
[1730835986765,41.20884,2445.8,2445.7,1.34646]
[1730835987061,41.20884,2445.8,2445.7,0.9376]
[1730835989670,41.20884,2445.8,2445.7,1.34646]
[1730835991366,40.8,2445.8,2445.7,1.34646]
[1730835991765,3.2078,2446.0,2445.9,0.40882]
[1730835992163,45.48021638,2446.0,2445.9,0.40882]
[1730835992468,45.48021638,2446.0,2445.9,0.84632]
[1730835993862,45.48021638,2446.0,2445.9,1.91805553]
[1730835994867,42.27241638,2446.0,2445.9,1.91805553]
[1730835995967,42.68122638,2446.0,2445.9,0.4375]
[1730835996270,0.40882,2445.9,2445.8,1.07173553]
[1730835996566,0.87042,2445.9,2445.8,1.48057553]
[1730835998369,0.87042,2445.9,2445.8,1.07173553]
[1730835998872,0.87042,2445.9,2445.8,1.48057553]
[1730835999168,0.87042,2445.9,2445.8,1.07173553]
[1730836000371,0.87042,2445.9,2445.8,1.48057553]
[1730836003866,0.87042,2445.9,2445.8,3.02921872]
[1730836004061,4.68021638,2446.2,2445.8,2.62037872]
[1730836004367,1.88119638,2446.2,2446.1,0.40879]
[1730836004563,42.68119638,2446.2,2446.1,0.40879]
[1730836005174,42.27241638,2446.2,2446.1,0.40879]
[1730836005367,42.68118638,2446.2,2446.1,1.79049]
[1730836005672,42.27241638,2446.2,2446.1,1.79049]
[1730836006172,40.8,2446.2,2446.1,2.86220273]
[1730836008775,42.27241638,2446.2,2446.1,2.86220273]
[1730836008978,42.68118638,2446.2,2446.1,1.3817]
[1730836009176,0.40879,2446.1,2446.0,1.07171273]
[1730836009369,0.85229,2446.1,2446.0,1.07171273]
[1730836009676,0.85229,2446.1,2446.0,1.48052273]
[1730836009865,0.85229,2446.1,2446.0,0.40881]
[1730836010771,0.4435,2446.1,2446.0,0.40881]
[1730836011172,0.4435,2446.1,2446.0,1.48052273]
[1730836011587,42.27241638,2446.2,2446.1,0.40879]
[1730836011872,42.68118638,2446.2,2446.1,1.30859]
[1730836014074,42.68118638,2446.2,2446.1,0.8998]
[1730836015988,42.27241638,2446.2,2446.0,1.48050273]
[1730836016173,0.40879,2446.1,2446.0,0.40879]
[1730836016374,0.40881,2446.0,2445.9,1.92472273]
[1730836016574,1.88122638,2446.0,2445.9,3.0636718]
[1730836016778,2.31442638,2446.0,2445.9,1.51591273]
[1730836017178,2.31442638,2446.0,2445.9,1.92473273]
[1730836017577,1.90561638,2446.0,2445.9,1.92473273]
[1730836017779,2.31442638,2446.0,2445.9,1.92473273]
[1730836018383,0.4332,2446.0,2445.9,3.47246434]
[1730836018582,0.4332,2446.0,2445.9,4.00611859]
[1730836019184,42.68119638,2446.2,2445.9,7.68529859]
[1730836019375,42.68119638,2446.2,2446.1,0.40879]
[1730836019782,0.40879,2446.1,2446.0,1.47987353]
[1730836020884,0.40879,2446.1,2446.0,3.02758406]
[1730836021185,0.40879,2446.1,2446.0,1.07108353]
[1730836021379,0.40879,2446.1,2446.0,1.47989353]
[1730836022787,0.40879,2446.1,2446.0,1.07108353]
[1730836022981,0.40879,2446.1,2446.0,1.47989353]
[1730836023574,42.27241638,2446.2,2446.0,1.07108353]
[1730836023879,42.68119638,2446.2,2446.1,0.40879]
[1730836024478,42.27241638,2446.2,2446.0,1.07108353]
[1730836024678,0.40879,2446.1,2446.0,1.47987353]
[1730836026181,0.40879,2446.1,2446.0,1.07108353]
[1730836026379,0.87779,2446.1,2446.0,1.07108353]
[1730836026584,0.87779,2446.1,2446.0,1.47989353]
[1730836026785,41.20878,2446.2,2446.0,1.07108353]
[1730836026985,40.8,2446.2,2446.1,0.40879]
[1730836027290,41.20877,2446.2,2446.1,0.40879]
[1730836027677,40.8,2446.2,2446.1,0.40879]
[1730836027986,0.9221,2446.4,2446.3,0.40876]
[1730836028484,3.2078,2446.8,2446.7,0.40869]
[1730836028983,44.0078,2446.8,2446.7,0.40869]
[1730836029381,1.94141638,2447.0,2446.7,4.5517]
[1730836029581,1.47241638,2447.0,2446.9,0.40865]
[1730836029983,42.27241638,2447.0,2446.9,0.40865]
[1730836030483,1.47241638,2447.0,2446.9,0.40865]
[1730836030880,40.8,2447.1,2446.9,4.0864]
[1730836031080,0.4709,2447.4,2447.2,0.4086]
[1730836031081,2.35189638,2447.4,2447.2,0.4086]
[1730836031280,2.35189638,2447.4,2447.0,0.4692]
[1730836031281,0.4709,2447.4,2447.0,0.4692]
[1730836031485,0.4709,2447.4,2447.3,0.40859]
[1730836031694,1.47241638,2447.5,2447.1,3.6571]
[1730836031887,1.47241638,2447.5,2447.2,0.4349]
[1730836032389,1.88097638,2447.5,2447.3,0.40859]
[1730836033293,0.40857,2447.4,2447.2,0.84349]
[1730836033683,3.18832432,2447.7,2447.2,0.4349]
[1730836033894,0.4086,2447.2,2447.0,0.87783]
[1730836034090,0.40862,2447.2,2447.0,0.87783]
[1730836034393,0.40862,2447.1,2447.0,0.87783]
[1730836035292,0.9042,2447.3,2447.0,0.87783]
[1730836035293,0.40861,2447.2,2447.0,0.87783]
[1730836035891,0.9042,2447.3,2446.9,0.4349]
[1730836036090,0.40864,2447.0,2446.9,0.4349]
[1730836036482,0.40864,2447.0,2446.7,0.8773]
[1730836036483,3.18832432,2447.2,2446.7,0.4426]
[1730836036789,0.40867,2446.8,2446.7,0.4426]
[1730836036984,3.18832432,2447.0,2446.5,4.3458]
[1730836036985,0.4087,2446.6,2446.5,4.3458]
[1730836037289,0.4087,2446.6,2446.5,3.2078]
[1730836037493,0.4087,2446.7,2446.5,3.2078]
[1730836037793,0.40865,2447.0,2446.8,0.40867]
[1730836038090,6.39612432,2447.2,2446.5,3.2078]
[1730836038295,6.39612432,2447.2,2446.8,0.40866]
[1730836038296,0.40864,2447.0,2446.8,0.40866]
[1730836038495,40.8,2446.9,2446.8,0.40866]
[1730836038992,3.2078,2447.2,2446.8,4.0872]
[1730836039187,3.2078,2447.2,2446.5,5.30035647]
[1730836039188,3.61641,2447.2,2447.0,0.40863]
[1730836039388,3.2078,2447.2,2446.9,1.3725]
[1730836039588,44.0078,2447.2,2447.1,0.40862]
[1730836039995,3.2078,2447.2,2447.1,0.40862]
[1730836040188,3.61641,2447.2,2447.0,0.40862]
[1730836040398,0.40862,2447.1,2447.0,0.40862]
[1730836040601,3.2078,2447.2,2447.0,0.40862]
[1730836040797,3.61642,2447.2,2447.0,0.40862]
[1730836041500,0.40862,2447.1,2447.0,0.40862]
[1730836041800,0.40863,2447.1,2447.0,0.40863]
[1730836042299,44.4772,2447.3,2447.0,0.40863]
[1730836042300,0.40861,2447.2,2447.0,0.40863]
[1730836042895,44.4772,2447.3,2447.0,0.40863]
[1730836043103,0.40862,2447.1,2447.0,0.40863]
[1730836043297,0.40861,2447.2,2447.1,0.40862]
[1730836043796,0.40861,2447.2,2446.9,1.3725]
[1730836043995,0.40863,2447.1,2447.0,0.40863]
[1730836044195,0.40863,2447.1,2446.9,1.3725]
[1730836044395,0.40863,2447.1,2446.9,1.78114]
[1730836044700,0.40864,2447.0,2446.9,1.3725]
[1730836044896,0.40864,2447.0,2446.9,0.9126]
[1730836045699,0.40864,2447.0,2446.9,1.32125]
[1730836046102,0.40863,2447.1,2447.0,0.40863]
[1730836046290,44.4772,2447.3,2447.0,0.40864]
[1730836046495,44.4772,2447.3,2447.1,0.40862]
[1730836046496,0.40861,2447.2,2447.1,0.40862]
[1730836046703,0.40861,2447.2,2446.9,0.9126]
[1730836046704,0.40861,2447.2,2447.0,0.40863]
[1730836046895,0.40861,2447.2,2447.1,0.40862]
[1730836047096,0.40861,2447.2,2446.9,0.9126]
[1730836047097,0.40863,2447.1,2447.0,0.40863]
[1730836048094,44.0078,2447.3,2447.2,0.4086]
[1730836048405,3.2078,2447.3,2447.1,0.40861]
[1730836048702,44.0078,2447.3,2446.9,0.9126]
[1730836049003,0.40861,2447.2,2447.1,0.40861]
[1730836049306,44.0078,2447.3,2446.9,0.9126]
[1730836049597,0.40861,2447.2,2447.1,0.40861]
[1730836049995,0.40861,2447.2,2446.9,0.9126]
[1730836049996,44.0078,2447.3,2446.9,0.9126]
[1730836050195,44.4164,2447.3,2447.2,0.4086]
[1730836050395,40.8,2447.3,2447.2,0.4086]
[1730836050599,3.6582,2447.6,2447.4,0.40857]
[1730836050801,4.06675,2447.6,2447.4,0.40856]
[1730836050995,3.2078,2447.6,2447.5,0.40855]
[1730836051202,41.25,2448.0,2447.9,0.40849]
[1730836052502,40.8,2448.0,2447.9,0.40849]
[1730836052706,0.40849,2447.9,2447.7,0.40851]
[1730836052917,40.8,2448.0,2447.6,3.2078]
[1730836053413,0.4085,2447.9,2447.7,0.40852]
[1730836053913,40.8,2448.0,2447.6,3.2078]
[1730836054202,40.8,2448.0,2447.7,0.4423]
[1730836054407,0.4085,2447.8,2447.7,0.4423]
[1730836055001,0.4085,2447.8,2447.7,0.85082]
[1730836055406,40.8,2448.0,2447.7,0.40852]
[1730836055607,0.4085,2447.9,2447.7,0.40852]
[1730836055805,40.8,2448.0,2447.8,0.40849]
[1730836056109,40.8,2448.0,2447.6,3.2078]
[1730836056508,0.4704,2447.9,2447.6,3.2078]
[1730836056703,0.4701,2447.8,2447.6,3.2078]
[1730836056902,0.40852,2447.7,2447.6,3.2078]
[1730836057417,0.40852,2447.7,2447.5,1.134]
[1730836057711,44.0078,2448.0,2447.5,1.134]
[1730836057712,40.8,2448.0,2447.5,1.134]
[1730836057898,41.2701,2448.0,2447.6,3.2078]
[1730836058105,0.4085,2447.8,2447.7,0.40851]
[1730836058400,41.2701,2448.0,2447.6,3.2078]
[1730836058611,0.40852,2447.8,2447.6,3.61632]
[1730836058813,0.40852,2447.7,2447.6,3.61632]
[1730836060311,41.2701,2448.0,2447.6,3.2078]
[1730836060507,41.67858,2448.0,2447.8,0.40849]
[1730836060904,41.2701,2448.0,2447.8,0.40849]
[1730836061113,0.40849,2447.9,2447.8,0.40849]
[1730836061906,0.4085,2447.8,2447.7,0.83861]
[1730836062215,0.4085,2447.9,2447.8,0.4085]
[1730836063510,41.67858,2448.0,2447.8,0.4085]
[1730836064717,0.40849,2447.9,2447.8,0.4085]
[1730836064916,41.2701,2448.0,2447.7,0.8899]
[1730836065114,0.4085,2447.8,2447.7,1.29841]
[1730836065509,0.4085,2447.9,2447.8,0.4085]
[1730836065816,0.40849,2447.9,2447.7,1.29841]
[1730836066416,0.40849,2447.9,2447.8,0.4085]
[1730836067315,0.4085,2447.8,2447.7,1.29841]
[1730836067515,1.87977164,2447.9,2447.8,0.4085]
[1730836069017,1.47127164,2447.9,2447.7,0.8899]
[1730836069228,0.4085,2447.8,2447.7,1.29841]
[1730836070016,1.47127164,2447.9,2447.7,0.8899]
[1730836070216,1.87977164,2447.9,2447.8,0.4085]
[1730836071625,0.4085,2447.8,2447.7,1.29841]
[1730836072825,1.47127164,2447.8,2447.5,1.07076647]
[1730836073131,1.90047164,2447.7,2447.3,0.5268]
[1730836073316,1.90047164,2447.7,2447.4,0.8853]
[1730836073317,0.4292,2447.7,2447.4,0.8853]
[1730836073522,0.4292,2447.7,2447.6,0.40854]
[1730836073936,0.40854,2447.6,2447.4,1.29386]
[1730836074322,0.40854,2447.6,2447.5,0.40855]
[1730836074725,0.40854,2447.6,2447.4,0.8853]
[1730836074929,0.4292,2447.7,2447.4,0.8853]
[1730836075230,0.83773,2447.7,2447.5,0.40855]
[1730836076226,0.40854,2447.6,2447.5,0.40855]
[1730836077225,0.40855,2447.5,2447.4,0.40856]
[1730836077732,0.40856,2447.5,2447.4,0.40857]
[1730836078126,1.33534,2447.6,2447.5,0.40855]
[1730836078432,0.9268,2447.6,2447.3,0.8805]
[1730836078621,0.40857,2447.5,2447.3,0.8805]
[1730836078816,0.40857,2447.5,2447.3,1.28907]
[1730836079027,0.40857,2447.5,2447.4,0.40857]
[1730836080935,0.4659,2447.6,2447.3,0.8805]
[1730836081139,0.87445,2447.6,2447.5,0.40855]
[1730836081429,0.40855,2447.6,2447.5,0.40855]
[1730836081630,0.4292,2447.7,2447.3,0.8805]
[1730836081832,0.40856,2447.5,2447.4,0.40856]
[1730836082221,0.4292,2447.7,2447.3,0.8805]
[1730836082435,0.40855,2447.6,2447.5,0.40855]
[1730836083725,0.4292,2447.7,2447.6,0.40854]
[1730836084031,3.6382,2447.8,2447.7,0.40852]
[1730836084032,0.40852,2447.8,2447.7,0.40852]
[1730836084330,0.40852,2447.7,2447.6,0.40852]
[1730836084528,0.4452,2447.9,2447.3,2.97272647]
[1730836084735,0.40851,2447.8,2447.7,0.40851]
[1730836084930,0.40853,2447.7,2447.6,0.40853]
[1730836085125,0.40853,2447.7,2447.5,0.4751]
[1730836085126,0.40851,2447.8,2447.7,0.4085]
[1730836085532,0.40851,2447.8,2447.7,0.40851]
[1730836085732,0.40853,2447.7,2447.6,0.40853]
[1730836087335,0.40852,2447.8,2447.7,0.40852]
[1730836088633,0.4452,2447.9,2447.5,0.4751]
[1730836088834,0.8537,2447.9,2447.8,0.4085]
[1730836089539,1.02108,2448.3,2447.9,0.40849]
[1730836089540,3.2078,2448.3,2447.9,0.40849]
[1730836089740,0.4545,2448.4,2448.0,0.8873]
[1730836089932,0.4545,2448.4,2448.0,5.16586647]
[1730836090237,0.86291,2448.4,2448.3,0.40842]
[1730836090537,0.4545,2448.4,2448.3,0.40842]
[1730836091139,42.08098,2448.6,2448.4,0.40839]
[1730836091327,0.4084,2448.5,2448.3,0.4084]
[1730836091530,41.6726,2448.6,2448.0,5.16586647]
[1730836091531,42.08098,2448.6,2448.4,0.4084]
[1730836091732,0.40839,2448.5,2448.4,0.4084]
[1730836091934,41.6726,2448.6,2448.4,0.4084]
[1730836092140,42.08098,2448.6,2448.4,0.4084]
[1730836093742,41.6726,2448.6,2448.1,4.3398]
[1730836093941,0.4084,2448.5,2448.3,0.40842]
[1730836094240,0.4084,2448.5,2448.3,0.40841]
[1730836095452,42.08098,2448.6,2448.4,0.4084]
[1730836095745,0.40839,2448.5,2448.3,0.40841]
[1730836095940,41.2334,2448.6,2448.1,5.41056647]
[1730836096243,2.58653906,2449.0,2448.8,0.40833]
[1730836096436,2.17821906,2449.0,2448.5,1.07076647]
[1730836096636,1.30179,2449.1,2448.9,0.40831]
[1730836096836,40.8,2449.0,2448.9,0.40831]
[1730836097642,3.2078,2449.2,2449.1,0.40829]
[1730836098045,3.2078,2449.2,2449.1,4.49149]
[1730836098244,41.2607,2449.4,2449.1,4.0832]
[1730836098444,40.8,2449.4,2449.3,0.40825]
[1730836098950,0.4328,2449.6,2449.1,0.40833]
[1730836099153,0.4328,2449.6,2449.0,4.5466]
[1730836099348,3.2078,2449.5,2449.0,4.1027]
[1730836099847,0.40833,2449.1,2449.0,0.8949]
[1730836100149,0.40838,2448.8,2448.7,1.226]
[1730836100342,0.40838,2448.8,2448.7,1.131]
[1730836100548,0.40841,2448.6,2448.5,0.4611]
[1730836100755,41.20841,2448.6,2448.5,0.4611]
[1730836101050,41.20841,2448.6,2448.4,1.131]
[1730836101241,40.8,2448.6,2448.4,1.131]
[1730836101437,40.8,2448.6,2448.4,1.53943]
[1730836101846,0.40844,2448.5,2448.2,1.97018]
[1730836102549,44.0078,2448.6,2448.2,1.5617]
[1730836102849,44.41622,2448.6,2448.3,0.40846]
[1730836103049,0.40844,2448.5,2448.2,1.97017]
[1730836103551,0.40845,2448.4,2448.1,3.61629]
[1730836103949,0.4598,2448.3,2448.1,3.61629]
[1730836104144,0.4598,2448.3,2448.1,3.2078]
[1730836104344,0.4598,2448.3,2448.2,0.40848]
[1730836106650,3.6676,2448.3,2447.9,0.8993]
[1730836106852,0.40851,2448.0,2447.9,0.4307]
[1730836107155,3.61631,2448.0,2447.8,1.53954]
[1730836107453,0.4296,2447.9,2447.8,1.53954]
[1730836108053,0.4296,2447.9,2447.8,0.40854]
[1730836108247,0.4296,2447.9,2447.5,0.9035]
[1730836108248,0.4296,2447.9,2447.7,0.40855]
[1730836108450,0.40855,2447.8,2447.6,0.40857]
[1730836108951,0.40855,2447.8,2447.7,0.40856]
[1730836109146,0.4296,2447.9,2447.5,2.0335]
[1730836109344,0.40857,2447.7,2447.6,0.40858]
[1730836109553,0.4296,2447.9,2447.8,0.40855]
[1730836110348,0.83813,2447.9,2447.8,0.40855]
[1730836110549,4.92373,2447.9,2447.8,0.40855]
[1730836110755,4.92373,2447.9,2447.5,0.9035]
[1730836110954,0.83813,2447.9,2447.5,0.9035]
[1730836111150,0.83813,2447.9,2447.8,0.40855]
[1730836111555,4.92373,2447.9,2447.8,0.40855]
[1730836111757,4.92373,2447.9,2447.7,0.40855]
[1730836111957,0.83813,2447.9,2447.7,0.40855]
[1730836112151,0.40856,2447.8,2447.6,0.40857]